[Event "Titled Tuesday Blitz May 03 Late 2022"]
[White "Svane, Rasmus"]
[Black "Mogranzini, Roberto"]
[WhiteFideId "4657101"]
[BlackFideId "810894"]
[WhiteElo "2645"]
[BlackElo "2469"]
[Result "1-0"]
[Round "01"]
[TimeControl "180+1"]
[Date "2022.05.03"]
[WhiteClock "0:00:46"]
[BlackClock "0:00:20"]

1. Nf3 {[%clk 0:03:00]}  c5 {[%clk 0:02:59]} 2. c4 {[%clk 0:03:00]}  g6 {[%clk 0:02:59]} 3. d4 {[%clk 0:02:59]}  cxd4 {[%clk 0:03:00]} 4. Nxd4 {[%clk 0:02:59]}  Bg7 {[%clk 0:03:01]} 5. e4 {[%clk 0:03:00]}  Nc6 {[%clk 0:03:01]} 6. Be3 {[%clk 0:03:00]}  Nf6 {[%clk 0:03:00]} 7. Nc3 {[%clk 0:03:00]}  O-O {[%clk 0:03:00]} 8. Be2 {[%clk 0:03:01]}  d6 {[%clk 0:03:00]} 9. O-O {[%clk 0:03:00]}  Bd7 {[%clk 0:03:01]} 10. Nc2 {[%clk 0:03:01]}  Rc8 {[%clk 0:02:57]} 11. f4 {[%clk 0:03:00]}  a6 {[%clk 0:02:48]} 12. Rc1 {[%clk 0:03:00]}  b5 {[%clk 0:02:19]} 13. cxb5 {[%clk 0:02:52]}  axb5 {[%clk 0:02:18]} 14. a3 {[%clk 0:02:42]}  Qa5 {[%clk 0:01:49]} 15. Qd2 {[%clk 0:02:41]}  Rfd8 {[%clk 0:01:41]} 16. b4 {[%clk 0:02:34]}  Qa8 {[%clk 0:01:40]} 17. h3 {[%clk 0:02:28]}  Be8 {[%clk 0:01:25]} 18. Rfd1 {[%clk 0:02:27]}  e6 {[%clk 0:01:18]} 19. Bxb5 {[%clk 0:02:22]}  d5 {[%clk 0:01:09]} 20. e5 {[%clk 0:02:21]}  Ne4 {[%clk 0:00:58]} 21. Nxe4 {[%clk 0:02:20]}  dxe4 {[%clk 0:00:59]} 22. Qe2 {[%clk 0:02:11]}  Ne7 {[%clk 0:00:55]} 23. Rxd8 {[%clk 0:02:08]}  Rxd8 {[%clk 0:00:55]} 24. Bxe8 {[%clk 0:02:09]}  Rxe8 {[%clk 0:00:55]} 25. Bc5 {[%clk 0:02:03]}  Nd5 {[%clk 0:00:51]} 26. Qxe4 {[%clk 0:02:01]}  Bh6 {[%clk 0:00:52]} 27. Rf1 {[%clk 0:01:57]}  Qa4 {[%clk 0:00:51]} 28. Ne3 {[%clk 0:01:52]}  Nc3 {[%clk 0:00:44]} 29. Qc4 {[%clk 0:01:41]}  Qxa3 {[%clk 0:00:38]} 30. b5 {[%clk 0:01:28]}  Qb2 {[%clk 0:00:38]} 31. b6 {[%clk 0:01:22]}  Rc8 {[%clk 0:00:37]} 32. Qb4 {[%clk 0:01:03]}  Ne2+ {[%clk 0:00:34]} 33. Kh2 {[%clk 0:00:53]}  Qxb4 {[%clk 0:00:33]} 34. Bxb4 {[%clk 0:00:54]}  Bxf4+ {[%clk 0:00:33]} 35. Rxf4 {[%clk 0:00:55]}  Nxf4 {[%clk 0:00:34]} 36. Bd6 {[%clk 0:00:55]}  Rc1 {[%clk 0:00:28]} 37. b7 {[%clk 0:00:53]}  Rb1 {[%clk 0:00:28]} 38. b8=Q+ {[%clk 0:00:54]}  Rxb8 {[%clk 0:00:29]} 39. Bxb8 {[%clk 0:00:54]}  h5 {[%clk 0:00:27]} 40. Kg3 {[%clk 0:00:54]}  Nd3 {[%clk 0:00:27]} 41. Bd6 {[%clk 0:00:51]}  Nc1 {[%clk 0:00:25]} 42. Kf3 {[%clk 0:00:51]}  Nb3 {[%clk 0:00:23]} 43. Nc2 {[%clk 0:00:50]}  Na5 {[%clk 0:00:23]} 44. Ke4 {[%clk 0:00:48]}  Nc6 {[%clk 0:00:24]} 45. Nd4 {[%clk 0:00:47]}  Na5 {[%clk 0:00:23]} 46. Kd3 {[%clk 0:00:46]}  Nb7 {[%clk 0:00:21]} 47. Kc4 {[%clk 0:00:47]}  Nd8 {[%clk 0:00:20]} 48. Be7 {[%clk 0:00:46]}  Nb7 {[%clk 0:00:20]} 49. Kb5 {[%clk 0:00:46]} 1-0


[Site "https://www.chess.com"]

[Event "Titled Tuesday Blitz May 03 Late 2022"]
[White "Vujic, Mihailo"]
[Black "Babazada, Khazar"]
[WhiteFideId "918873"]
[BlackFideId "13413554"]
[WhiteElo "2256"]
[BlackElo "2406"]
[Result "0-1"]
[Round "01"]
[TimeControl "180+1"]
[Date "2022.05.03"]
[WhiteClock "0:00:02"]
[BlackClock "0:01:09"]

1. e4 {[%clk 0:02:58]}  g6 {[%clk 0:03:00]} 2. d4 {[%clk 0:02:57]}  Bg7 {[%clk 0:03:00]} 3. Nc3 {[%clk 0:02:58]}  d6 {[%clk 0:02:59]} 4. Bg5 {[%clk 0:02:57]}  a6 {[%clk 0:03:00]} 5. Nf3 {[%clk 0:02:55]}  h6 {[%clk 0:03:00]} 6. Bh4 {[%clk 0:02:54]}  b5 {[%clk 0:03:01]} 7. Bd3 {[%clk 0:02:52]}  Bb7 {[%clk 0:03:01]} 8. Qe2 {[%clk 0:02:51]}  Nd7 {[%clk 0:03:02]} 9. e5 {[%clk 0:02:50]}  g5 {[%clk 0:02:56]} 10. Bg3 {[%clk 0:02:40]}  Nb6 {[%clk 0:02:55]} 11. e6 {[%clk 0:02:37]}  fxe6 {[%clk 0:02:52]} 12. Qxe6 {[%clk 0:02:35]}  Qd7 {[%clk 0:02:53]} 13. Bg6+ {[%clk 0:02:14]}  Kd8 {[%clk 0:02:52]} 14. Qf7 {[%clk 0:02:13]}  Nf6 {[%clk 0:02:52]} 15. Qxg7 {[%clk 0:02:09]}  Rg8 {[%clk 0:02:41]} 16. Qxh6 {[%clk 0:02:07]}  b4 {[%clk 0:02:33]} 17. Ne2 {[%clk 0:01:59]}  g4 {[%clk 0:02:24]} 18. Nh4 {[%clk 0:01:53]}  Qe6 {[%clk 0:02:20]} 19. Qe3 {[%clk 0:01:43]}  Qc4 {[%clk 0:02:09]} 20. O-O {[%clk 0:01:34]}  Nbd5 {[%clk 0:02:06]} 21. Qd2 {[%clk 0:01:19]}  Qc6 {[%clk 0:02:03]} 22. Bf7 {[%clk 0:01:10]}  Rh8 {[%clk 0:01:59]} 23. Bxd5 {[%clk 0:01:07]}  Nxd5 {[%clk 0:02:00]} 24. f3 {[%clk 0:00:56]}  Kd7 {[%clk 0:02:00]} 25. Qg5 {[%clk 0:00:49]}  Rag8 {[%clk 0:01:59]} 26. Qf5+ {[%clk 0:00:47]}  Kd8 {[%clk 0:01:46]} 27. Nf4 {[%clk 0:00:38]}  Ne3 {[%clk 0:01:37]} 28. Qd3 {[%clk 0:00:22]}  Nxf1 {[%clk 0:01:34]} 29. Rxf1 {[%clk 0:00:23]}  gxf3 {[%clk 0:01:34]} 30. Nxf3 {[%clk 0:00:19]}  a5 {[%clk 0:01:34]} 31. d5 {[%clk 0:00:18]}  Qb6+ {[%clk 0:01:34]} 32. Bf2 {[%clk 0:00:17]}  Qa6 {[%clk 0:01:30]} 33. Ne6+ {[%clk 0:00:17]}  Kc8 {[%clk 0:01:28]} 34. Qxa6 {[%clk 0:00:16]}  Bxa6 {[%clk 0:01:29]} 35. Re1 {[%clk 0:00:16]}  Bc4 {[%clk 0:01:27]} 36. Rd1 {[%clk 0:00:13]}  Kd7 {[%clk 0:01:22]} 37. b3 {[%clk 0:00:13]}  Be2 {[%clk 0:01:21]} 38. Rd3 {[%clk 0:00:05]}  Bxd3 {[%clk 0:01:15]} 39. cxd3 {[%clk 0:00:06]}  a4 {[%clk 0:01:16]} 40. h4 {[%clk 0:00:04]}  Ra8 {[%clk 0:01:12]} 41. Nfd4 {[%clk 0:00:03]}  Ra5 {[%clk 0:01:09]} 42. Kh2 {[%clk 0:00:01]}  Rxd5 {[%clk 0:01:09]} 43. g4 {[%clk 0:00:02]}  c5 {[%clk 0:01:09]} 0-1


[Site "https://www.chess.com"]

[Event "Titled Tuesday Blitz May 03 Late 2022"]
[White "Vusatiuk, Vladimir"]
[Black "Bluebaum, Matthias"]
[WhiteFideId "14118610"]
[BlackFideId "24651516"]
[WhiteElo "2157"]
[BlackElo "2550"]
[Result "1-0"]
[Round "01"]
[TimeControl "180+1"]
[Date "2022.05.03"]
[WhiteClock "0:00:46"]
[BlackClock "0:00:31"]

1. d4 {[%clk 0:03:00]}  Nf6 {[%clk 0:03:00]} 2. c4 {[%clk 0:03:00]}  e6 {[%clk 0:03:00]} 3. Nc3 {[%clk 0:03:00]}  Bb4 {[%clk 0:03:00]} 4. e3 {[%clk 0:03:01]}  c5 {[%clk 0:03:00]} 5. Ne2 {[%clk 0:02:59]}  d5 {[%clk 0:02:58]} 6. a3 {[%clk 0:02:54]}  Ba5 {[%clk 0:02:58]} 7. dxc5 {[%clk 0:02:49]}  dxc4 {[%clk 0:02:58]} 8. Qxd8+ {[%clk 0:02:45]}  Bxd8 {[%clk 0:02:59]} 9. Nd4 {[%clk 0:02:37]}  Nbd7 {[%clk 0:02:59]} 10. Bxc4 {[%clk 0:02:26]}  Nxc5 {[%clk 0:02:59]} 11. b4 {[%clk 0:02:19]}  Nce4 {[%clk 0:02:49]} 12. Nxe4 {[%clk 0:02:19]}  Nxe4 {[%clk 0:02:50]} 13. Bb2 {[%clk 0:02:10]}  Bd7 {[%clk 0:02:50]} 14. f3 {[%clk 0:01:58]}  Nd6 {[%clk 0:02:50]} 15. Bb3 {[%clk 0:01:53]}  Rc8 {[%clk 0:02:50]} 16. Kf2 {[%clk 0:01:40]}  Nc4 {[%clk 0:02:47]} 17. Bxc4 {[%clk 0:01:29]}  Rxc4 {[%clk 0:02:48]} 18. Rac1 {[%clk 0:01:30]}  Rxc1 {[%clk 0:02:47]} 19. Rxc1 {[%clk 0:01:30]}  f6 {[%clk 0:02:44]} 20. Nb3 {[%clk 0:01:27]}  Kf7 {[%clk 0:02:10]} 21. Na5 {[%clk 0:01:14]}  b6 {[%clk 0:01:46]} 22. Nc6 {[%clk 0:01:14]}  Bxc6 {[%clk 0:01:46]} 23. Rxc6 {[%clk 0:01:14]}  Ke7 {[%clk 0:01:47]} 24. Rc8 {[%clk 0:01:06]}  Kd7 {[%clk 0:01:32]} 25. Ra8 {[%clk 0:01:06]}  a5 {[%clk 0:01:33]} 26. bxa5 {[%clk 0:01:04]}  bxa5 {[%clk 0:01:34]} 27. Bc3 {[%clk 0:00:58]}  Re8 {[%clk 0:01:11]} 28. Ra7+ {[%clk 0:00:52]}  Kc6 {[%clk 0:00:59]} 29. Rxg7 {[%clk 0:00:52]}  a4 {[%clk 0:01:00]} 30. Rxh7 {[%clk 0:00:49]}  Be7 {[%clk 0:01:01]} 31. Rh4 {[%clk 0:00:42]}  Kb5 {[%clk 0:01:01]} 32. Bb4 {[%clk 0:00:42]}  f5 {[%clk 0:00:47]} 33. Bxe7 {[%clk 0:00:41]}  Rxe7 {[%clk 0:00:42]} 34. Rb4+ {[%clk 0:00:42]}  Ka5 {[%clk 0:00:43]} 35. h4 {[%clk 0:00:43]}  Rc7 {[%clk 0:00:42]} 36. h5 {[%clk 0:00:39]}  Rc3 {[%clk 0:00:35]} 37. h6 {[%clk 0:00:39]}  Rxa3 {[%clk 0:00:20]} 38. Rh4 {[%clk 0:00:39]}  Ra2+ {[%clk 0:00:20]} 39. Kg3 {[%clk 0:00:39]}  f4+ {[%clk 0:00:17]} 40. exf4 {[%clk 0:00:39]}  Rc2 {[%clk 0:00:17]} 41. h7 {[%clk 0:00:40]}  Rc8 {[%clk 0:00:18]} 42. h8=Q {[%clk 0:00:40]}  Rxh8 {[%clk 0:00:19]} 43. Rxh8 {[%clk 0:00:41]}  a3 {[%clk 0:00:19]} 44. Re8 {[%clk 0:00:40]}  Kb4 {[%clk 0:00:20]} 45. Rxe6 {[%clk 0:00:40]}  Kc5 {[%clk 0:00:21]} 46. Ra6 {[%clk 0:00:40]}  Kd4 {[%clk 0:00:22]} 47. Rxa3 {[%clk 0:00:40]}  Kd5 {[%clk 0:00:23]} 48. Re3 {[%clk 0:00:40]}  Kd6 {[%clk 0:00:23]} 49. Re5 {[%clk 0:00:41]}  Kd7 {[%clk 0:00:24]} 50. Kf2 {[%clk 0:00:41]}  Kd6 {[%clk 0:00:25]} 51. g4 {[%clk 0:00:42]}  Kd7 {[%clk 0:00:26]} 52. g5 {[%clk 0:00:43]}  Kc6 {[%clk 0:00:27]} 53. g6 {[%clk 0:00:44]}  Kc7 {[%clk 0:00:28]} 54. g7 {[%clk 0:00:45]}  Kd6 {[%clk 0:00:29]} 55. g8=Q {[%clk 0:00:45]}  Kc7 {[%clk 0:00:30]} 56. Qg6 {[%clk 0:00:45]}  Kc8 {[%clk 0:00:30]} 57. Re8+ {[%clk 0:00:45]}  Kb7 {[%clk 0:00:30]} 58. Re7+ {[%clk 0:00:45]}  Ka8 {[%clk 0:00:31]} 59. Qe8# {[%clk 0:00:46]} 1-0


[Site "https://www.chess.com"]

[Event "Titled Tuesday Blitz May 03 Late 2022"]
[White "Wachinger, Guenther"]
[Black "Matinian, Nikita"]
[WhiteFideId "4604261"]
[BlackFideId "24129100"]
[WhiteElo "2212"]
[BlackElo "2422"]
[Result "0-1"]
[Round "01"]
[TimeControl "180+1"]
[Date "2022.05.03"]
[WhiteClock "0:00:05"]
[BlackClock "0:00:50"]

1. e4 {[%clk 0:02:56]}  c5 {[%clk 0:02:58]} 2. Nf3 {[%clk 0:02:43]}  d6 {[%clk 0:02:58]} 3. d4 {[%clk 0:02:40]}  cxd4 {[%clk 0:02:58]} 4. Nxd4 {[%clk 0:02:41]}  Nf6 {[%clk 0:02:57]} 5. Nc3 {[%clk 0:02:42]}  g6 {[%clk 0:02:58]} 6. Be3 {[%clk 0:02:41]}  Bg7 {[%clk 0:02:58]} 7. f3 {[%clk 0:02:40]}  O-O {[%clk 0:02:57]} 8. Qd2 {[%clk 0:02:40]}  Nc6 {[%clk 0:02:57]} 9. O-O-O {[%clk 0:02:39]}  d5 {[%clk 0:02:57]} 10. Kb1 {[%clk 0:02:39]}  e6 {[%clk 0:02:37]} 11. exd5 {[%clk 0:01:38]}  Nxd5 {[%clk 0:02:33]} 12. Nxd5 {[%clk 0:01:30]}  Qxd5 {[%clk 0:02:28]} 13. Nxc6 {[%clk 0:01:30]}  Qxc6 {[%clk 0:02:29]} 14. Bd4 {[%clk 0:01:30]}  e5 {[%clk 0:02:28]} 15. Bc3 {[%clk 0:01:30]}  Be6 {[%clk 0:02:28]} 16. Qd6 {[%clk 0:01:27]}  Qxd6 {[%clk 0:02:12]} 17. Rxd6 {[%clk 0:01:28]}  Rfd8 {[%clk 0:02:11]} 18. Rxd8+ {[%clk 0:01:26]}  Rxd8 {[%clk 0:02:12]} 19. Be2 {[%clk 0:01:26]}  f5 {[%clk 0:02:11]} 20. Rd1 {[%clk 0:01:25]}  Rxd1+ {[%clk 0:02:10]} 21. Bxd1 {[%clk 0:01:26]}  Kf7 {[%clk 0:02:08]} 22. b3 {[%clk 0:01:24]}  g5 {[%clk 0:02:06]} 23. Be2 {[%clk 0:01:24]}  h5 {[%clk 0:02:06]} 24. Kc1 {[%clk 0:01:23]}  g4 {[%clk 0:02:06]} 25. Kd1 {[%clk 0:01:14]}  Bd5 {[%clk 0:02:02]} 26. Ke1 {[%clk 0:01:05]}  Ke6 {[%clk 0:02:02]} 27. Bd2 {[%clk 0:01:04]}  Bf6 {[%clk 0:01:52]} 28. c4 {[%clk 0:01:04]}  Bc6 {[%clk 0:01:53]} 29. Bc3 {[%clk 0:01:00]}  gxf3 {[%clk 0:01:30]} 30. gxf3 {[%clk 0:00:53]}  h4 {[%clk 0:01:26]} 31. Bd2 {[%clk 0:00:50]}  h3 {[%clk 0:01:25]} 32. f4 {[%clk 0:00:35]}  Bh4+ {[%clk 0:01:23]} 33. Kd1 {[%clk 0:00:30]}  Bg3 {[%clk 0:01:21]} 34. Bf1 {[%clk 0:00:04]}  Bg2 {[%clk 0:01:20]} 35. Ke2 {[%clk 0:00:03]}  Bxh2 {[%clk 0:01:16]} 36. fxe5 {[%clk 0:00:03]}  Bxf1+ {[%clk 0:01:06]} 37. Kxf1 {[%clk 0:00:03]}  Kxe5 {[%clk 0:01:00]} 38. Be3 {[%clk 0:00:04]}  a6 {[%clk 0:00:59]} 39. a4 {[%clk 0:00:03]}  Ke4 {[%clk 0:01:00]} 40. Bb6 {[%clk 0:00:04]}  f4 {[%clk 0:00:54]} 41. b4 {[%clk 0:00:04]}  f3 {[%clk 0:00:55]} 42. c5 {[%clk 0:00:04]}  Bf4 {[%clk 0:00:51]} 43. b5 {[%clk 0:00:04]}  h2 {[%clk 0:00:50]} 44. c6 {[%clk 0:00:03]}  h1=Q+ {[%clk 0:00:50]} 45. Bg1 {[%clk 0:00:04]}  Be3 {[%clk 0:00:50]} 46. Ke1 {[%clk 0:00:05]}  Qxg1# {[%clk 0:00:50]} 0-1


[Site "https://www.chess.com"]

[Event "Titled Tuesday Blitz May 03 Late 2022"]
[White "Yang, Cayden"]
[Black "Pakleza, Zbigniew"]
[WhiteFideId "30967260"]
[BlackFideId "1119290"]
[WhiteElo "2470"]
[BlackElo "2467"]
[Result "0-1"]
[Round "01"]
[TimeControl "180+1"]
[Date "2022.05.03"]
[WhiteClock "0:00:20"]
[BlackClock "0:00:08"]

1. e4 {[%clk 0:02:58]}  d6 {[%clk 0:02:59]} 2. g3 {[%clk 0:02:48]}  Nf6 {[%clk 0:02:59]} 3. Bg2 {[%clk 0:02:48]}  c6 {[%clk 0:02:59]} 4. Ne2 {[%clk 0:02:47]}  e5 {[%clk 0:02:55]} 5. O-O {[%clk 0:02:47]}  Be7 {[%clk 0:02:55]} 6. d4 {[%clk 0:02:46]}  O-O {[%clk 0:02:55]} 7. a4 {[%clk 0:02:45]}  a5 {[%clk 0:02:54]} 8. Na3 {[%clk 0:02:44]}  Nbd7 {[%clk 0:02:52]} 9. h3 {[%clk 0:02:32]}  Qc7 {[%clk 0:02:51]} 10. b3 {[%clk 0:02:24]}  Re8 {[%clk 0:02:50]} 11. Re1 {[%clk 0:02:23]}  Bf8 {[%clk 0:02:50]} 12. Nc3 {[%clk 0:02:16]}  Nb6 {[%clk 0:02:20]} 13. Bg5 {[%clk 0:02:04]}  Be7 {[%clk 0:02:20]} 14. Qd2 {[%clk 0:02:00]}  Be6 {[%clk 0:02:10]} 15. Kh2 {[%clk 0:01:48]}  Rad8 {[%clk 0:02:06]} 16. f4 {[%clk 0:01:35]}  h6 {[%clk 0:02:01]} 17. Bh4 {[%clk 0:01:29]}  exf4 {[%clk 0:01:53]} 18. gxf4 {[%clk 0:01:16]}  Nxe4 {[%clk 0:01:47]} 19. Bxe4 {[%clk 0:00:55]}  Bxh4 {[%clk 0:01:47]} 20. Rg1 {[%clk 0:00:56]}  d5 {[%clk 0:01:34]} 21. Bd3 {[%clk 0:00:52]}  Nc8 {[%clk 0:01:10]} 22. Kh1 {[%clk 0:00:40]}  f5 {[%clk 0:00:59]} 23. Qg2 {[%clk 0:00:36]}  Bf6 {[%clk 0:00:44]} 24. Ne2 {[%clk 0:00:35]}  Qf7 {[%clk 0:00:38]} 25. Ng3 {[%clk 0:00:34]}  Nd6 {[%clk 0:00:38]} 26. Rae1 {[%clk 0:00:30]}  Bxd4 {[%clk 0:00:35]} 27. Rgf1 {[%clk 0:00:29]}  Ne4 {[%clk 0:00:34]} 28. Nb1 {[%clk 0:00:28]}  Qg6 {[%clk 0:00:28]} 29. Rf3 {[%clk 0:00:27]}  Bc8 {[%clk 0:00:26]} 30. Ref1 {[%clk 0:00:26]}  Re7 {[%clk 0:00:22]} 31. h4 {[%clk 0:00:26]}  Rde8 {[%clk 0:00:21]} 32. h5 {[%clk 0:00:25]}  Qg4 {[%clk 0:00:21]} 33. Ne2 {[%clk 0:00:23]}  Qxg2+ {[%clk 0:00:18]} 34. Kxg2 {[%clk 0:00:24]}  Nf6 {[%clk 0:00:17]} 35. Ng3 {[%clk 0:00:23]}  Ng4 {[%clk 0:00:14]} 36. Kh3 {[%clk 0:00:19]}  Ne3 {[%clk 0:00:13]} 37. Re1 {[%clk 0:00:20]}  Bb6 {[%clk 0:00:13]} 38. Nd2 {[%clk 0:00:19]}  Kf7 {[%clk 0:00:12]} 39. Rf2 {[%clk 0:00:19]}  Nxc2 {[%clk 0:00:10]} 40. Rxe7+ {[%clk 0:00:20]}  Rxe7 {[%clk 0:00:10]} 41. Rf1 {[%clk 0:00:20]}  Ne3 {[%clk 0:00:10]} 42. Re1 {[%clk 0:00:21]}  Kf6 {[%clk 0:00:10]} 43. Re2 {[%clk 0:00:19]}  Ng4 {[%clk 0:00:11]} 44. Rxe7 {[%clk 0:00:19]}  Kxe7 {[%clk 0:00:11]} 45. Bxf5 {[%clk 0:00:19]}  Nf2+ {[%clk 0:00:09]} 46. Kg2 {[%clk 0:00:20]}  Bxf5 {[%clk 0:00:10]} 47. Nxf5+ {[%clk 0:00:20]}  Kf6 {[%clk 0:00:11]} 48. Ng3 {[%clk 0:00:20]}  Ng4 {[%clk 0:00:10]} 49. Kf3 {[%clk 0:00:20]}  Ne3 {[%clk 0:00:10]} 50. Ne2 {[%clk 0:00:20]}  Nf5 {[%clk 0:00:10]} 51. Kg4 {[%clk 0:00:16]}  Bc5 {[%clk 0:00:08]} 52. Nf3 {[%clk 0:00:16]}  Ne3+ {[%clk 0:00:08]} 53. Kg3 {[%clk 0:00:16]}  Nc2 {[%clk 0:00:09]} 54. Ne5 {[%clk 0:00:16]}  Ke6 {[%clk 0:00:07]} 55. Kf3 {[%clk 0:00:15]}  Nd4+ {[%clk 0:00:07]} 56. Nxd4+ {[%clk 0:00:16]}  Bxd4 {[%clk 0:00:08]} 57. Nd3 {[%clk 0:00:16]}  Bb6 {[%clk 0:00:07]} 58. Ne1 {[%clk 0:00:16]}  Bc7 {[%clk 0:00:07]} 59. Nd3 {[%clk 0:00:17]}  Bd6 {[%clk 0:00:08]} 60. Ke3 {[%clk 0:00:17]}  b5 {[%clk 0:00:08]} 61. Kd4 {[%clk 0:00:17]}  bxa4 {[%clk 0:00:08]} 62. bxa4 {[%clk 0:00:17]}  Kf5 {[%clk 0:00:08]} 63. Ke3 {[%clk 0:00:18]}  c5 {[%clk 0:00:08]} 64. Kf3 {[%clk 0:00:18]}  c4 {[%clk 0:00:08]} 65. Nf2 {[%clk 0:00:17]}  Bxf4 {[%clk 0:00:08]} 66. Nd1 {[%clk 0:00:18]}  d4 {[%clk 0:00:08]} 67. Nb2 {[%clk 0:00:19]}  c3 {[%clk 0:00:08]} 68. Nd3 {[%clk 0:00:19]}  c2 {[%clk 0:00:07]} 69. Ke2 {[%clk 0:00:19]}  c1=Q {[%clk 0:00:08]} 70. Nxc1 {[%clk 0:00:20]}  Bxc1 {[%clk 0:00:08]} 0-1


[Site "https://www.chess.com"]

[Event "Titled Tuesday Blitz May 03 Late 2022"]
[White "Yedidia, Daniel"]
[Black "Coelho, Ramyres Santana"]
[WhiteFideId "30905907"]
[BlackFideId "2120690"]
[WhiteElo "2570"]
[BlackElo "1888"]
[Result "1-0"]
[Round "01"]
[TimeControl "180+1"]
[Date "2022.05.03"]
[WhiteClock "0:00:14"]
[BlackClock "0:00:04"]

1. d4 {[%clk 0:02:52]}  Nf6 {[%clk 0:02:59]} 2. c4 {[%clk 0:02:52]}  g6 {[%clk 0:02:59]} 3. Nc3 {[%clk 0:02:50]}  d5 {[%clk 0:02:59]} 4. cxd5 {[%clk 0:02:51]}  Nxd5 {[%clk 0:03:00]} 5. Bd2 {[%clk 0:02:51]}  Bg7 {[%clk 0:02:58]} 6. e4 {[%clk 0:02:52]}  Nxc3 {[%clk 0:02:57]} 7. Bxc3 {[%clk 0:02:53]}  c5 {[%clk 0:02:58]} 8. d5 {[%clk 0:02:42]}  Bxc3+ {[%clk 0:02:56]} 9. bxc3 {[%clk 0:02:43]}  Qa5 {[%clk 0:02:53]} 10. Qd2 {[%clk 0:02:42]}  O-O {[%clk 0:02:52]} 11. h4 {[%clk 0:02:40]}  e6 {[%clk 0:02:42]} 12. h5 {[%clk 0:02:20]}  exd5 {[%clk 0:02:40]} 13. hxg6 {[%clk 0:02:13]}  fxg6 {[%clk 0:02:26]} 14. Qxd5+ {[%clk 0:01:58]}  Rf7 {[%clk 0:02:25]} 15. Ne2 {[%clk 0:01:54]}  Qc7 {[%clk 0:01:58]} 16. Ng3 {[%clk 0:01:25]}  Qf4 {[%clk 0:01:46]} 17. Qxc5 {[%clk 0:00:56]}  Nc6 {[%clk 0:01:33]} 18. Bc4 {[%clk 0:00:54]}  Bg4 {[%clk 0:01:24]} 19. Bxf7+ {[%clk 0:00:47]}  Qxf7 {[%clk 0:01:23]} 20. O-O {[%clk 0:00:42]}  Rf8 {[%clk 0:01:20]} 21. Qe3 {[%clk 0:00:36]}  h5 {[%clk 0:01:15]} 22. Ne2 {[%clk 0:00:35]}  Ne5 {[%clk 0:01:11]} 23. f3 {[%clk 0:00:29]}  Be6 {[%clk 0:01:06]} 24. Nd4 {[%clk 0:00:25]}  Bc4 {[%clk 0:01:03]} 25. Rfd1 {[%clk 0:00:24]}  Qf6 {[%clk 0:01:02]} 26. Rab1 {[%clk 0:00:24]}  b6 {[%clk 0:01:02]} 27. Rb4 {[%clk 0:00:22]}  Qh4 {[%clk 0:00:59]} 28. Qf2 {[%clk 0:00:22]}  Qxf2+ {[%clk 0:00:55]} 29. Kxf2 {[%clk 0:00:23]}  Nd3+ {[%clk 0:00:55]} 30. Ke3 {[%clk 0:00:21]}  Nxb4 {[%clk 0:00:55]} 31. cxb4 {[%clk 0:00:22]}  Bxa2 {[%clk 0:00:56]} 32. Ra1 {[%clk 0:00:22]}  Bc4 {[%clk 0:00:52]} 33. Rxa7 {[%clk 0:00:23]}  Rf7 {[%clk 0:00:51]} 34. Rxf7 {[%clk 0:00:22]}  Kxf7 {[%clk 0:00:52]} 35. Nc6 {[%clk 0:00:20]}  Bf1 {[%clk 0:00:48]} 36. g3 {[%clk 0:00:20]}  g5 {[%clk 0:00:47]} 37. Nd4 {[%clk 0:00:19]}  h4 {[%clk 0:00:44]} 38. gxh4 {[%clk 0:00:19]}  gxh4 {[%clk 0:00:45]} 39. Kf2 {[%clk 0:00:19]}  Bh3 {[%clk 0:00:40]} 40. Ne2 {[%clk 0:00:18]}  Bd7 {[%clk 0:00:38]} 41. Nf4 {[%clk 0:00:18]}  h3 {[%clk 0:00:11]} 42. Kg3 {[%clk 0:00:18]}  Ke7 {[%clk 0:00:08]} 43. Nxh3 {[%clk 0:00:18]}  Kd6 {[%clk 0:00:08]} 44. Nf4 {[%clk 0:00:16]}  Ke5 {[%clk 0:00:08]} 45. Nd5 {[%clk 0:00:15]}  b5 {[%clk 0:00:07]} 46. Kf2 {[%clk 0:00:13]}  Bc6 {[%clk 0:00:07]} 47. Ke3 {[%clk 0:00:10]}  Bxd5 {[%clk 0:00:07]} 48. exd5 {[%clk 0:00:11]}  Kxd5 {[%clk 0:00:07]} 49. f4 {[%clk 0:00:12]}  Kc4 {[%clk 0:00:06]} 50. f5 {[%clk 0:00:12]}  Kd5 {[%clk 0:00:06]} 51. Kf4 {[%clk 0:00:12]}  Kc4 {[%clk 0:00:06]} 52. f6 {[%clk 0:00:12]}  Kxb4 {[%clk 0:00:07]} 53. f7 {[%clk 0:00:13]}  Kc3 {[%clk 0:00:07]} 54. f8=Q {[%clk 0:00:14]}  b4 {[%clk 0:00:08]} 55. Qc5+ {[%clk 0:00:14]}  Kb3 {[%clk 0:00:08]} 56. Ke3 {[%clk 0:00:14]}  Ka4 {[%clk 0:00:07]} 57. Kd3 {[%clk 0:00:14]}  Kb3 {[%clk 0:00:05]} 58. Qb6 {[%clk 0:00:13]}  Ka3 {[%clk 0:00:03]} 59. Kc4 {[%clk 0:00:12]}  Ka2 {[%clk 0:00:04]} 60. Qxb4 {[%clk 0:00:13]}  Ka1 {[%clk 0:00:05]} 61. Kc3 {[%clk 0:00:13]}  Ka2 {[%clk 0:00:04]} 62. Qb2# {[%clk 0:00:14]} 1-0


[Site "https://www.chess.com"]

[Event "Titled Tuesday Blitz May 03 Late 2022"]
[White "Zhang, Derek"]
[Black "Castillo Pena, Patricia Evarista"]
[WhiteFideId "2087871"]
[BlackFideId "6412106"]
[WhiteElo "2085"]
[BlackElo "1918"]
[Result "1-0"]
[Round "01"]
[TimeControl "180+1"]
[Date "2022.05.03"]
[WhiteClock "0:02:41"]
[BlackClock "0:02:19"]

1. f4 {[%clk 0:03:00]}  d5 {[%clk 0:02:59]} 2. Nf3 {[%clk 0:03:00]}  c5 {[%clk 0:02:57]} 3. e3 {[%clk 0:03:01]}  Nc6 {[%clk 0:02:56]} 4. b3 {[%clk 0:03:01]}  Nf6 {[%clk 0:02:55]} 5. Bb2 {[%clk 0:03:01]}  Bg4 {[%clk 0:02:51]} 6. Bb5 {[%clk 0:03:01]}  Rc8 {[%clk 0:02:50]} 7. O-O {[%clk 0:03:01]}  e6 {[%clk 0:02:48]} 8. d3 {[%clk 0:03:02]}  Bd6 {[%clk 0:02:46]} 9. Nbd2 {[%clk 0:03:02]}  O-O {[%clk 0:02:46]} 10. Bxc6 {[%clk 0:03:01]}  Rxc6 {[%clk 0:02:46]} 11. Qe1 {[%clk 0:03:02]}  b5 {[%clk 0:02:42]} 12. Qg3 {[%clk 0:03:02]}  Bxf3 {[%clk 0:02:40]} 13. Nxf3 {[%clk 0:03:03]}  c4 {[%clk 0:02:37]} 14. Nd4 {[%clk 0:02:58]}  Rb6 {[%clk 0:02:32]} 15. Rae1 {[%clk 0:02:51]}  Qc7 {[%clk 0:02:29]} 16. Nxb5 {[%clk 0:02:46]}  Rxb5 {[%clk 0:02:24]} 17. Bxf6 {[%clk 0:02:47]}  g6 {[%clk 0:02:23]} 18. Qg5 {[%clk 0:02:42]}  Rc8 {[%clk 0:02:20]} 19. dxc4 {[%clk 0:02:41]}  dxc4 {[%clk 0:02:19]} 20. Qxb5 {[%clk 0:02:41]} 1-0


[Site "https://www.chess.com"]